[Event "Campeonato de Aragón Individual Absoluto 2022"]
[Site "Zaragoza, Spain"]
[Date "2022.08.31"]
[Round "5.1"]
[White "Quintin Navarro, Alberto"]
[Black "Garza Marco, Sergio"]
[Result "0-1"]
[TimeControl "90 min + 30 sg"]
[WhiteElo "2372"]
[BlackElo "2408"]

1. d4 {[%clk 01:30:58]} {[%emt 00:00:01]} Nf6 {[%clk 01:30:50]} {[%emt
00:00:10]} 2. Nf3 {[%clk 01:31:14]} {[%emt 00:00:14]} e6 {[%clk 01:31:08]}
{[%emt 00:00:12]} 3. c4 {[%clk 01:31:39]} {[%emt 00:00:05]} Bb4+ {[%clk
01:31:18]} {[%emt 00:00:21]} 4. Bd2 {[%clk 01:31:56]} {[%emt 00:00:13]} a5
{[%clk 01:31:43]} {[%emt 00:00:06]} 5. Nc3 {[%clk 01:32:18]} {[%emt 00:00:07]}
b6 {[%clk 01:26:52]} {[%emt 00:05:21]} 6. e3 {[%clk 01:32:35]} {[%emt
00:00:12]} Bb7 {[%clk 01:26:19]} {[%emt 00:01:04]} 7. Bd3 {[%clk 01:32:42]}
{[%emt 00:00:22]} O-O {[%clk 01:24:49]} {[%emt 00:02:00]} 8. Qc2 {[%clk
01:32:51]} {[%emt 00:00:21]} d5 {[%clk 01:22:54]} {[%emt 00:02:25]} 9. cxd5
{[%clk 01:33:02]} {[%emt 00:00:20]} exd5 {[%clk 01:23:12]} {[%emt 00:00:13]} 10.
O-O {[%clk 01:33:14]} {[%emt 00:00:17]} Nbd7 {[%clk 01:19:19]} {[%emt
00:04:23]} 11. a3 {[%clk 01:33:27]} {[%emt 00:00:18]} Bxc3 {[%clk 01:05:52]}
{[%emt 00:13:57]} 12. bxc3 {[%clk 01:28:56]} {[%emt 00:05:00]} Ne4 {[%clk
01:04:23]} {[%emt 00:01:59]} 13. Be1 {[%clk 01:28:37]} {[%emt 00:00:49]} Qe7
{[%clk 01:00:30]} {[%emt 00:04:23]} 14. Nd2 {[%clk 01:19:27]} {[%emt 00:09:40]}
Nef6 {[%clk 00:59:12]} {[%emt 00:01:49]} 15. Nf3 {[%clk 01:04:39]} {[%emt
00:15:18]} Ne4 {[%clk 00:58:27]} {[%emt 00:01:15]} 16. g3 {[%clk 01:02:36]}
{[%emt 00:02:34]} Qe6 {[%clk 00:54:28]} {[%emt 00:04:29]} 17. Nh4 {[%clk
00:57:29]} {[%emt 00:05:37]} Ba6 {[%clk 00:51:41]} {[%emt 00:03:17]} 18. f3
{[%clk 00:42:52]} {[%emt 00:15:06]} Bxd3 {[%clk 00:49:10]} {[%emt 00:02:31]} 19.
Qxd3 {[%clk 00:43:16]} {[%emt 00:00:06]} Nd6 {[%clk 00:50:05]} {[%emt
00:00:04]} 20. Ng2 {[%clk 00:41:26]} {[%emt 00:02:20]} g5 {[%clk 00:49:58]}
{[%emt 00:00:38]} 21. Bd2 {[%clk 00:40:15]} {[%emt 00:01:41]} Rae8 {[%clk
00:48:14]} {[%emt 00:02:13]} 22. Rae1 {[%clk 00:40:27]} {[%emt 00:00:18]} Qg6
{[%clk 00:33:42]} {[%emt 00:15:02]} 23. Qxg6+ {[%clk 00:39:32]} {[%emt
00:01:25]} fxg6 {[%clk 00:33:16]} {[%emt 00:00:57]} 24. h4 {[%clk 00:33:57]}
{[%emt 00:06:05]} gxh4 {[%clk 00:32:24]} {[%emt 00:01:22]} 25. gxh4 {[%clk
00:34:17]} {[%emt 00:00:10]} c6 {[%clk 00:31:26]} {[%emt 00:01:28]} 26. Kh2
{[%clk 00:31:43]} {[%emt 00:03:04]} b5 {[%clk 00:31:19]} {[%emt 00:00:37]} 27.
Nf4 {[%clk 00:30:18]} {[%emt 00:01:55]} Nb6 {[%clk 00:31:20]} {[%emt 00:00:29]}
28. Rg1 {[%clk 00:29:01]} {[%emt 00:01:47]} Kh8 {[%clk 00:28:11]} {[%emt
00:03:39]} 29. Bc1 {[%clk 00:18:25]} {[%emt 00:11:06]} Rf6 {[%clk 00:24:54]}
{[%emt 00:03:46]} 30. Rg4 {[%clk 00:17:21]} {[%emt 00:01:34]} Na4 {[%clk
00:24:22]} {[%emt 00:01:03]} 31. e4 {[%clk 00:16:22]} {[%emt 00:01:29]} dxe4
{[%clk 00:21:42]} {[%emt 00:03:10]} 32. fxe4 {[%clk 00:14:14]} {[%emt
00:02:38]} Rxe4 {[%clk 00:21:49]} {[%emt 00:00:23]} 33. Rxe4 {[%clk 00:14:05]}
{[%emt 00:00:38]} Nxe4 {[%clk 00:22:14]} {[%emt 00:00:05]} 34. Nxg6+ {[%clk
00:14:18]} {[%emt 00:00:17]} hxg6 {[%clk 00:22:37]} {[%emt 00:00:07]} 35. Rxe4
{[%clk 00:14:44]} {[%emt 00:00:04]} Nxc3 {[%clk 00:23:00]} {[%emt 00:00:08]} 36.
Re8+ {[%clk 00:13:43]} {[%emt 00:01:31]} Kg7 {[%clk 00:22:42]} {[%emt
00:00:48]} 37. Bg5 {[%clk 00:13:55]} {[%emt 00:00:18]} Kf7 {[%clk 00:19:19]}
{[%emt 00:03:53]} 38. Rd8 {[%clk 00:12:21]} {[%emt 00:02:05]} Rf2+ {[%clk
00:18:05]} {[%emt 00:01:43]} 39. Kh3 {[%clk 00:11:11]} {[%emt 00:01:40]} Ne4
{[%clk 00:08:19]} {[%emt 00:10:16]} 40. Rc8 {[%clk 00:07:55]} {[%emt 00:03:47]}
Rc2 {[%clk 00:08:23]} {[%emt 00:00:26]} 41. Kg4 {[%clk 00:07:38]} {[%emt
00:00:47]} Rc3 {[%clk 00:06:23]} {[%emt 00:02:31]} 42. Kf4 {[%clk 00:05:35]}
{[%emt 00:02:33]} Nxg5 {[%clk 00:05:04]} {[%emt 00:01:49]} 43. Kxg5 {[%clk
00:04:57]} {[%emt 00:01:08]} Ke6 {[%clk 00:04:53]} {[%emt 00:00:41]} 44. Kxg6
{[%clk 00:05:10]} {[%emt 00:00:18]} Rg3 {[%clk 00:04:59]} {[%emt 00:00:24]} 45.
Kh7 {[%clk 00:05:16]} {[%emt 00:00:24]} Kd5 {[%clk 00:05:25]} {[%emt 00:00:04]}
46. a4 {[%clk 00:04:13]} {[%emt 00:01:33]} bxa4 {[%clk 00:04:38]} {[%emt
00:01:17]} 47. Ra8 {[%clk 00:04:24]} {[%emt 00:00:19]} Kc4 {[%clk 00:01:52]}
{[%emt 00:03:16]} 48. Rxa5 {[%clk 00:04:47]} {[%emt 00:00:07]} Kb4 {[%clk
00:02:20]} {[%emt 00:00:02]} 49. Ra6 {[%clk 00:02:57]} {[%emt 00:02:20]} Kb5
{[%clk 00:02:33]} {[%emt 00:00:16]} 50. Ra8 {[%clk 00:03:22]} {[%emt 00:00:05]}
Rh3 {[%clk 00:02:48]} {[%emt 00:00:14]} 51. Rb8+ {[%clk 00:03:24]} {[%emt
00:00:28]} Kc4 {[%clk 00:03:06]} {[%emt 00:00:12]} 52. Ra8 {[%clk 00:02:32]}
{[%emt 00:01:22]} Rxh4+ {[%clk 00:03:30]} {[%emt 00:00:06]} 53. Kg6 {[%clk
00:02:58]} {[%emt 00:00:04]} Kb4 {[%clk 00:03:36]} {[%emt 00:00:24]} 54. Rb8+
{[%clk 00:03:13]} {[%emt 00:00:16]} Kc3 {[%clk 00:02:56]} {[%emt 00:01:10]} 0-1

[Event "Campeonato de Aragón Individual Absoluto 2022"]
[Site "Zaragoza, Spain"]
[Date "2022.08.31"]
[Round "5.2"]
[White "Glavina, Pablo"]
[Black "Ereza Vizcarra, Fernando"]
[Result "1/2-1/2"]
[TimeControl "90 min + 30 sg"]
[WhiteElo "2394"]
[BlackElo "2132"]

1. d4 {[%clk 01:30:57]} {[%emt 00:00:03]} d6 {[%clk 01:29:20]} {[%emt
00:01:41]} 2. e4 {[%clk 01:31:21]} {[%emt 00:00:05]} Nf6 {[%clk 01:29:47]}
{[%emt 00:00:03]} 3. Nc3 {[%clk 01:31:48]} {[%emt 00:00:04]} e5 {[%clk
01:30:14]} {[%emt 00:00:03]} 4. Nf3 {[%clk 01:32:13]} {[%emt 00:00:05]} Nbd7
{[%clk 01:30:41]} {[%emt 00:00:03]} 5. Bc4 {[%clk 01:32:37]} {[%emt 00:00:06]}
Be7 {[%clk 01:31:09]} {[%emt 00:00:02]} 6. O-O {[%clk 01:33:00]} {[%emt
00:00:07]} O-O {[%clk 01:31:35]} {[%emt 00:00:04]} 7. Re1 {[%clk 01:33:25]}
{[%emt 00:00:04]} c6 {[%clk 01:31:10]} {[%emt 00:00:56]} 8. a4 {[%clk
01:33:50]} {[%emt 00:00:05]} a5 {[%clk 01:30:52]} {[%emt 00:00:48]} 9. h3
{[%clk 01:31:57]} {[%emt 00:02:23]} Nb6 {[%clk 01:29:17]} {[%emt 00:02:05]} 10.
Bf1 {[%clk 01:30:10]} {[%emt 00:02:16]} Nfd7 {[%clk 01:28:55]} {[%emt
00:00:52]} 11. Ne2 {[%clk 01:26:49]} {[%emt 00:03:51]} exd4 {[%clk 01:25:43]}
{[%emt 00:03:43]} 12. Nexd4 {[%clk 01:24:54]} {[%emt 00:02:24]} Nc5 {[%clk
01:26:07]} {[%emt 00:00:07]} 13. b3 {[%clk 01:24:44]} {[%emt 00:00:40]} Bf6
{[%clk 01:26:15]} {[%emt 00:00:23]} 14. Ba3 {[%clk 01:24:23]} {[%emt 00:00:50]}
Nbd7 {[%clk 01:21:10]} {[%emt 00:05:36]} 15. Nf5 {[%clk 01:10:13]} {[%emt
00:14:39]} Ne5 {[%clk 01:03:46]} {[%emt 00:17:54]} 16. Nxe5 {[%clk 00:28:14]}
{[%emt 00:42:30]} Bxe5 {[%clk 01:02:57]} {[%emt 00:01:20]} 17. Rb1 {[%clk
00:28:39]} {[%emt 00:00:04]} Nxe4 {[%clk 00:48:17]} {[%emt 00:15:11]} 18. Nh6+
{[%clk 00:29:04]} {[%emt 00:00:04]} gxh6 {[%clk 00:48:42]} {[%emt 00:00:06]} 19.
Rxe4 {[%clk 00:29:31]} {[%emt 00:00:03]} Bf5 {[%clk 00:49:05]} {[%emt
00:00:07]} 20. Re3 {[%clk 00:29:54]} {[%emt 00:00:07]} Qf6 {[%clk 00:48:01]}
{[%emt 00:01:34]} 21. Bd3 {[%clk 00:28:59]} {[%emt 00:01:25]} Bg6 {[%clk
00:45:48]} {[%emt 00:02:43]} 22. Rf3 {[%clk 00:22:43]} {[%emt 00:06:46]} Qg7
{[%clk 00:43:39]} {[%emt 00:02:39]} 23. Bxg6 {[%clk 00:22:24]} {[%emt
00:00:50]} hxg6 {[%clk 00:44:00]} {[%emt 00:00:09]} 24. Bxd6 {[%clk 00:22:06]}
{[%emt 00:00:47]} Rad8 {[%clk 00:44:14]} {[%emt 00:00:17]} 25. Rd3 {[%clk
00:22:32]} {[%emt 00:00:04]} Bxd6 {[%clk 00:44:34]} {[%emt 00:00:09]} 26. Rxd6
{[%clk 00:22:57]} {[%emt 00:00:05]} Rxd6 {[%clk 00:45:03]} {[%emt 00:00:01]} 27.
Qxd6 {[%clk 00:23:20]} {[%emt 00:00:06]} Qc3 {[%clk 00:45:32]} {[%emt
00:00:01]} 1/2-1/2

[Event "Campeonato de Aragón Individual Absoluto 2022"]
[Site "Zaragoza, Spain"]
[Date "2022.08.31"]
[Round "5.3"]
[White "Vela Frago, Alberto"]
[Black "Villalba Embid, Marcos"]
[Result "1-0"]
[TimeControl "90 min + 30 sg"]
[WhiteElo "2232"]
[BlackElo "2089"]

1. d4 {[%clk 01:30:53]} {[%emt 00:00:07]} f5 {[%clk 01:30:37]} {[%emt
00:00:23]} 2. g3 {[%clk 01:30:26]} {[%emt 00:00:57]} Nf6 {[%clk 01:31:02]}
{[%emt 00:00:05]} 3. Bg2 {[%clk 01:30:42]} {[%emt 00:00:13]} g6 {[%clk
01:30:55]} {[%emt 00:00:38]} 4. c4 {[%clk 01:29:21]} {[%emt 00:01:51]} Bg7
{[%clk 01:31:11]} {[%emt 00:00:13]} 5. Nf3 {[%clk 01:29:23]} {[%emt 00:00:28]}
d6 {[%clk 01:31:35]} {[%emt 00:00:06]} 6. Nc3 {[%clk 01:28:24]} {[%emt
00:01:29]} O-O {[%clk 01:31:57]} {[%emt 00:00:09]} 7. O-O {[%clk 01:25:44]}
{[%emt 00:03:10]} c6 {[%clk 01:27:55]} {[%emt 00:04:32]} 8. Qc2 {[%clk
01:23:07]} {[%emt 00:03:07]} Qe8 {[%clk 01:20:21]} {[%emt 00:08:03]} 9. b3
{[%clk 01:15:26]} {[%emt 00:08:11]} a5 {[%clk 01:19:50]} {[%emt 00:01:02]} 10.
Bb2 {[%clk 01:07:45]} {[%emt 00:08:10]} Na6 {[%clk 01:13:54]} {[%emt 00:06:25]}
11. Rad1 {[%clk 01:04:50]} {[%emt 00:03:24]} e5 {[%clk 01:09:31]} {[%emt
00:04:54]} 12. dxe5 {[%clk 01:03:28]} {[%emt 00:01:53]} dxe5 {[%clk 01:09:53]}
{[%emt 00:00:08]} 13. Na4 {[%clk 00:49:43]} {[%emt 00:14:15]} Nb4 {[%clk
00:56:13]} {[%emt 00:14:10]} 14. Qb1 {[%clk 00:49:11]} {[%emt 00:01:02]} Nd7
{[%clk 00:54:15]} {[%emt 00:02:28]} 15. e4 {[%clk 00:47:16]} {[%emt 00:02:25]}
Qe7 {[%clk 00:37:46]} {[%emt 00:16:59]} 16. exf5 {[%clk 00:44:37]} {[%emt
00:03:09]} gxf5 {[%clk 00:37:57]} {[%emt 00:00:19]} 17. Rfe1 {[%clk 00:43:40]}
{[%emt 00:01:27]} e4 {[%clk 00:36:25]} {[%emt 00:02:02]} 18. Bxg7 {[%clk
00:36:55]} {[%emt 00:07:15]} Qxg7 {[%clk 00:35:04]} {[%emt 00:01:52]} 19. Nd4
{[%clk 00:36:44]} {[%emt 00:00:41]} Qg6 {[%clk 00:29:44]} {[%emt 00:05:50]} 20.
Ne2 {[%clk 00:30:44]} {[%emt 00:06:30]} Qf6 {[%clk 00:26:54]} {[%emt 00:03:20]}
21. Nf4 {[%clk 00:28:25]} {[%emt 00:02:49]} b5 {[%clk 00:26:12]} {[%emt
00:01:13]} 22. Nb2 {[%clk 00:26:13]} {[%emt 00:02:41]} Ne5 {[%clk 00:24:37]}
{[%emt 00:02:06]} 23. a3 {[%clk 00:26:08]} {[%emt 00:00:35]} Na6 {[%clk
00:24:19]} {[%emt 00:00:48]} 24. cxb5 {[%clk 00:24:37]} {[%emt 00:02:01]} cxb5
{[%clk 00:24:43]} {[%emt 00:00:07]} 25. Rd5 {[%clk 00:20:15]} {[%emt 00:04:51]}
Rb8 {[%clk 00:22:39]} {[%emt 00:02:34]} 26. Red1 {[%clk 00:19:06]} {[%emt
00:01:39]} Nc7 {[%clk 00:21:10]} {[%emt 00:01:59]} 27. Rd6 {[%clk 00:18:28]}
{[%emt 00:01:07]} Qf7 {[%clk 00:21:27]} {[%emt 00:00:13]} 28. Qc2 {[%clk
00:17:33]} {[%emt 00:01:26]} Ne6 {[%clk 00:21:09]} {[%emt 00:00:49]} 29. Qc3
{[%clk 00:15:09]} {[%emt 00:02:54]} Nxf4 {[%clk 00:19:40]} {[%emt 00:01:58]} 30.
Qxe5 {[%clk 00:15:08]} {[%emt 00:00:31]} Nxg2 {[%clk 00:18:51]} {[%emt
00:01:20]} 31. Kxg2 {[%clk 00:15:22]} {[%emt 00:00:16]} Qg7 {[%clk 00:16:54]}
{[%emt 00:02:27]} 32. Qxg7+ {[%clk 00:12:12]} {[%emt 00:03:40]} Kxg7 {[%clk
00:17:20]} {[%emt 00:00:04]} 33. Rc1 {[%clk 00:12:23]} {[%emt 00:00:19]} Rb7
{[%clk 00:16:14]} {[%emt 00:01:36]} 34. Nd1 {[%clk 00:12:18]} {[%emt 00:00:35]}
f4 {[%clk 00:12:25]} {[%emt 00:04:19]} 35. gxf4 {[%clk 00:12:18]} {[%emt
00:00:29]} Bg4 {[%clk 00:12:51]} {[%emt 00:00:05]} 36. Ne3 {[%clk 00:11:32]}
{[%emt 00:01:16]} Bf3+ {[%clk 00:12:59]} {[%emt 00:00:23]} 37. Kg3 {[%clk
00:11:44]} {[%emt 00:00:17]} Rf6 {[%clk 00:10:45]} {[%emt 00:02:44]} 38. Rxf6
{[%clk 00:11:59]} {[%emt 00:00:15]} Kxf6 {[%clk 00:11:11]} {[%emt 00:00:04]} 39.
Rc6+ {[%clk 00:12:26]} {[%emt 00:00:04]} Kf7 {[%clk 00:11:18]} {[%emt
00:00:22]} 40. Rh6 {[%clk 00:12:09]} {[%emt 00:00:46]} Kg8 {[%clk 00:11:27]}
{[%emt 00:00:21]} 41. f5 {[%clk 00:12:17]} {[%emt 00:00:23]} b4 {[%clk
00:11:16]} {[%emt 00:00:42]} 42. a4 {[%clk 00:11:57]} {[%emt 00:00:49]} Rd7
{[%clk 00:11:21]} {[%emt 00:00:25]} 43. Nc4 {[%clk 00:11:07]} {[%emt 00:01:20]}
Bd1 {[%clk 00:11:10]} {[%emt 00:00:41]} 44. Nxa5 {[%clk 00:11:18]} {[%emt
00:00:20]} Bxb3 {[%clk 00:09:32]} {[%emt 00:02:08]} 45. Nxb3 {[%clk 00:11:30]}
{[%emt 00:00:17]} Rd3+ {[%clk 00:09:58]} {[%emt 00:00:04]} 46. Kf4 {[%clk
00:11:54]} {[%emt 00:00:06]} Rxb3 {[%clk 00:10:25]} {[%emt 00:00:04]} 47. Kxe4
{[%clk 00:11:26]} {[%emt 00:00:57]} Ra3 {[%clk 00:10:28]} {[%emt 00:00:27]} 48.
Ra6 {[%clk 00:11:34]} {[%emt 00:00:22]} Ra2 {[%clk 00:10:21]} {[%emt 00:00:37]}
49. Kf3 {[%clk 00:11:15]} {[%emt 00:00:49]} b3 {[%clk 00:10:16]} {[%emt
00:00:35]} 50. Rb6 {[%clk 00:11:40]} {[%emt 00:00:05]} b2 {[%clk 00:10:33]}
{[%emt 00:00:14]} 51. Kg3 {[%clk 00:11:31]} {[%emt 00:00:39]} Ra3+ {[%clk
00:10:32]} {[%emt 00:00:31]} 52. f3 {[%clk 00:11:40]} {[%emt 00:00:21]} Ra2
{[%clk 00:10:48]} {[%emt 00:00:14]} 53. Rb7 {[%clk 00:11:14]} {[%emt 00:00:55]}
Kf8 {[%clk 00:09:28]} {[%emt 00:01:50]} 54. f4 {[%clk 00:11:02]} {[%emt
00:00:42]} Rxa4 {[%clk 00:08:47]} {[%emt 00:01:12]} 55. Rxb2 {[%clk 00:11:29]}
{[%emt 00:00:02]} Ra6 {[%clk 00:06:20]} {[%emt 00:02:57]} 56. Kg4 {[%clk
00:11:43]} {[%emt 00:00:16]} Kg7 {[%clk 00:05:31]} {[%emt 00:01:19]} 57. Kg5
{[%clk 00:11:51]} {[%emt 00:00:21]} h6+ {[%clk 00:05:48]} {[%emt 00:00:13]} 58.
Kg4 {[%clk 00:12:20]} Kf6 {[%clk 00:05:09]} {[%emt 00:01:10]} 59. Rb5 {[%clk
00:12:22]} {[%emt 00:00:28]} Ra2 {[%clk 00:04:47]} {[%emt 00:00:53]} 60. Rb6+
{[%clk 00:12:47]} {[%emt 00:00:05]} Kg7 {[%clk 00:05:06]} {[%emt 00:00:11]} 61.
f6+ {[%clk 00:12:01]} {[%emt 00:01:15]} Kf7 {[%clk 00:05:09]} {[%emt 00:00:27]}
62. h4 {[%clk 00:12:12]} {[%emt 00:00:19]} Ra5 {[%clk 00:05:07]} {[%emt
00:00:32]} 63. h5 {[%clk 00:12:13]} {[%emt 00:00:29]} Ra7 {[%clk 00:05:02]}
{[%emt 00:00:35]} 64. Rd6 {[%clk 00:09:05]} {[%emt 00:03:38]} Rb7 {[%clk
00:04:58]} {[%emt 00:00:34]} 65. Kf3 {[%clk 00:08:25]} {[%emt 00:01:10]} Rb3+
{[%clk 00:04:16]} {[%emt 00:01:13]} 66. Ke4 {[%clk 00:08:03]} {[%emt 00:00:51]}
Rb5 {[%clk 00:04:31]} {[%emt 00:00:15]} 67. Rd5 {[%clk 00:07:16]} {[%emt
00:01:17]} Rxd5 {[%clk 00:02:58]} {[%emt 00:02:03]} 68. Kxd5 {[%clk 00:07:45]}
{[%emt 00:00:01]} Kxf6 {[%clk 00:03:19]} {[%emt 00:00:09]} 69. Ke4 {[%clk
00:08:00]} {[%emt 00:00:15]} Ke6 {[%clk 00:03:47]} {[%emt 00:00:03]} 70. f5+
{[%clk 00:08:10]} {[%emt 00:00:20]} Kf6 {[%clk 00:04:13]} {[%emt 00:00:03]} 71.
Kf4 {[%clk 00:08:38]} {[%emt 00:00:01]} Kf7 {[%clk 00:04:38]} {[%emt 00:00:06]}
72. Ke5 {[%clk 00:09:03]} {[%emt 00:00:05]} Ke7 {[%clk 00:05:05]} {[%emt
00:00:03]} 73. f6+ {[%clk 00:09:27]} {[%emt 00:00:07]} Kf7 {[%clk 00:05:19]}
{[%emt 00:00:16]} 74. Kf5 {[%clk 00:09:53]} {[%emt 00:00:04]} Kf8 {[%clk
00:05:40]} {[%emt 00:00:09]} 75. Kg6 {[%clk 00:10:17]} {[%emt 00:00:05]} Kg8
{[%clk 00:06:08]} {[%emt 00:00:03]} 76. Kxh6 {[%clk 00:10:41]} {[%emt
00:00:06]} Kf7 {[%clk 00:06:34]} {[%emt 00:00:04]} 77. Kg5 {[%clk 00:11:00]}
{[%emt 00:00:11]} Kg8 {[%clk 00:06:56]} {[%emt 00:00:09]} 78. Kg6 {[%clk
00:11:24]} {[%emt 00:00:05]} Kf8 {[%clk 00:07:21]} {[%emt 00:00:05]} 79. f7
{[%clk 00:11:52]} {[%emt 00:00:03]} 1-0

[Event "Campeonato de Aragón Individual Absoluto 2022"]
[Site "Zaragoza, Spain"]
[Date "2022.08.31"]
[Round "5.4"]
[White "Ruiz Fernandez, Daniel"]
[Black "Galstyan, David"]
[Result "0-1"]
[TimeControl "90 min + 30 sg"]
[WhiteElo "1837"]
[BlackElo "2035"]

1. Nf3 {[%clk 01:30:55]} {[%emt 00:00:04]} e6 {[%clk 01:30:40]} {[%emt
00:00:20]} 2. d4 {[%clk 01:31:13]} {[%emt 00:00:12]} Nf6 {[%clk 01:30:48]}
{[%emt 00:00:22]} 3. c4 {[%clk 01:31:39]} {[%emt 00:00:04]} Bb4+ {[%clk
01:29:58]} {[%emt 00:01:20]} 4. Bd2 {[%clk 01:30:39]} {[%emt 00:01:31]} a5
{[%clk 01:30:13]} {[%emt 00:00:15]} 5. g3 {[%clk 01:29:21]} {[%emt 00:01:48]}
O-O {[%clk 01:29:07]} {[%emt 00:01:36]} 6. Bg2 {[%clk 01:26:32]} {[%emt
00:03:19]} d6 {[%clk 01:28:00]} {[%emt 00:01:37]} 7. O-O {[%clk 01:26:21]}
{[%emt 00:00:41]} Bxd2 {[%clk 01:27:24]} {[%emt 00:01:05]} 8. Qxd2 {[%clk
01:26:43]} {[%emt 00:00:08]} Nc6 {[%clk 01:26:19]} {[%emt 00:01:34]} 9. Rd1
{[%clk 01:16:45]} {[%emt 00:10:29]} Qe7 {[%clk 01:20:24]} {[%emt 00:06:25]} 10.
Nc3 {[%clk 01:17:03]} {[%emt 00:00:13]} e5 {[%clk 01:19:38]} {[%emt 00:01:16]}
11. d5 {[%clk 01:08:59]} {[%emt 00:08:34]} Nb8 {[%clk 01:15:20]} {[%emt
00:04:47]} 12. Qc2 {[%clk 01:03:13]} {[%emt 00:06:16]} Na6 {[%clk 01:08:59]}
{[%emt 00:06:51]} 13. a3 {[%clk 01:03:34]} {[%emt 00:00:10]} Bd7 {[%clk
01:01:34]} {[%emt 00:07:54]} 14. e4 {[%clk 00:59:32]} {[%emt 00:04:32]} Nh5
{[%clk 00:48:16]} {[%emt 00:13:48]} 15. Ne1 {[%clk 00:37:23]} {[%emt 00:22:39]}
g6 {[%clk 00:42:21]} {[%emt 00:06:25]} 16. Nd3 {[%clk 00:28:33]} {[%emt
00:09:20]} f5 {[%clk 00:34:16]} {[%emt 00:08:35]} 17. exf5 {[%clk 00:27:49]}
{[%emt 00:01:14]} Bxf5 {[%clk 00:33:34]} {[%emt 00:01:12]} 18. Qe2 {[%clk
00:23:03]} {[%emt 00:05:16]} Rae8 {[%clk 00:25:41]} {[%emt 00:08:23]} 19. Ne4
{[%clk 00:21:42]} {[%emt 00:01:51]} Nf6 {[%clk 00:23:56]} {[%emt 00:02:16]} 20.
b4 {[%clk 00:20:58]} {[%emt 00:01:13]} axb4 {[%clk 00:21:16]} {[%emt 00:03:10]}
21. axb4 {[%clk 00:21:24]} {[%emt 00:00:05]} Nxe4 {[%clk 00:21:25]} {[%emt
00:00:20]} 22. Bxe4 {[%clk 00:21:46]} {[%emt 00:00:07]} Bxe4 {[%clk 00:20:30]}
{[%emt 00:01:25]} 23. Qxe4 {[%clk 00:22:11]} {[%emt 00:00:05]} Qf6 {[%clk
00:20:49]} {[%emt 00:00:12]} 24. Kg2 {[%clk 00:20:03]} {[%emt 00:02:38]} Qf5
{[%clk 00:13:58]} {[%emt 00:07:21]} 25. Qxf5 {[%clk 00:18:40]} {[%emt
00:01:53]} Rxf5 {[%clk 00:13:04]} {[%emt 00:01:24]} 26. b5 {[%clk 00:18:47]}
{[%emt 00:00:23]} Nc5 {[%clk 00:12:59]} {[%emt 00:00:36]} 27. Nxc5 {[%clk
00:19:09]} {[%emt 00:00:08]} dxc5 {[%clk 00:13:28]} {[%emt 00:00:01]} 28. Ra7
{[%clk 00:19:27]} {[%emt 00:00:11]} Rb8 {[%clk 00:12:43]} {[%emt 00:01:14]} 29.
Re1 {[%clk 00:13:52]} {[%emt 00:06:05]} h5 {[%clk 00:11:38]} {[%emt 00:01:36]}
30. f3 {[%clk 00:12:32]} {[%emt 00:01:50]} Kf7 {[%clk 00:09:43]} {[%emt
00:02:24]} 31. Re4 {[%clk 00:10:17]} {[%emt 00:02:45]} Kf6 {[%clk 00:06:43]}
{[%emt 00:03:30]} 32. Kf2 {[%clk 00:10:17]} {[%emt 00:00:30]} Ke7 {[%clk
00:06:37]} {[%emt 00:00:36]} 33. Ke3 {[%clk 00:05:28]} {[%emt 00:05:19]} Kd6
{[%clk 00:06:38]} {[%emt 00:00:30]} 34. h4 {[%clk 00:02:52]} {[%emt 00:03:05]}
g5 {[%clk 00:04:23]} {[%emt 00:02:45]} 35. hxg5 {[%clk 00:01:07]} {[%emt
00:02:15]} Rxg5 {[%clk 00:04:51]} {[%emt 00:00:02]} 36. Rh4 {[%clk 00:00:41]}
{[%emt 00:00:56]} Rf8 {[%clk 00:04:18]} {[%emt 00:01:04]} 37. Rh3 {[%clk
00:00:41]} {[%emt 00:00:30]} b6 {[%clk 00:04:33]} {[%emt 00:00:15]} 38. Ra2
{[%clk 00:00:35]} {[%emt 00:00:35]} Rfg8 {[%clk 00:03:04]} {[%emt 00:01:59]} 39.
Rg2 {[%clk 00:00:44]} {[%emt 00:00:20]} Ra8 {[%clk 00:03:13]} {[%emt 00:00:21]}
40. Rgh2 {[%clk 00:00:41]} {[%emt 00:00:33]} Ra3+ {[%clk 00:03:12]} {[%emt
00:00:31]} 41. Ke4 {[%clk 00:01:00]} {[%emt 00:00:10]} Rc3 {[%clk 00:03:03]}
{[%emt 00:00:40]} 42. Rxh5 {[%clk 00:01:13]} {[%emt 00:00:18]} Rxc4+ {[%clk
00:03:23]} {[%emt 00:00:10]} 43. Kd3 {[%clk 00:01:39]} {[%emt 00:00:04]} Rd4+
{[%clk 00:03:41]} {[%emt 00:00:12]} 44. Ke3 {[%clk 00:01:44]} {[%emt 00:00:25]}
Rxg3 {[%clk 00:03:45]} {[%emt 00:00:26]} 45. Rh6+ {[%clk 00:02:01]} {[%emt
00:00:14]} Kxd5 {[%clk 00:04:01]} {[%emt 00:00:14]} 46. Rc6 {[%emt 00:00:40]}
e4 {[%clk 00:03:06]} {[%emt 00:01:24]} 47. Rf2 {[%clk 00:01:42]} {[%emt
00:00:39]} Rxf3+ {[%clk 00:03:10]} {[%emt 00:00:26]} 48. Rxf3 {[%clk 00:01:59]}
{[%emt 00:00:13]} Rd3+ {[%clk 00:03:03]} {[%emt 00:00:37]} 49. Kd4+ {[%emt
00:00:13]} 0-1